fUST/lending_fUST_20250717
["ID","MTS","AMOUNT","RATE_DAILY","PERIOD"]
[372762138,1752751849743,-2000.0,0.00021016,2]
[372762139,1752751849752,-2000.0,0.00021016,2]
[372762140,1752751849762,-2406.28,0.00021019,2]
[372762141,1752751849771,-915.21,0.00021019,2]
[372762142,1752751849781,-535.23,0.00021019,2]
[372762143,1752751849791,-2033.53,0.00021019,2]
[372762144,1752751849800,-740.79,0.00021019,2]
[372762145,1752751849809,-475.95,0.00021019,2]
[372762146,1752751849819,-1059.14,0.00021019,2]
[372762147,1752751849828,-630.62,0.00021019,2]
[372762148,1752751849837,-484.65,0.00021019,2]
[372762149,1752751849847,-460.0,0.00021021,2]
[372762150,1752751849856,-752.75,0.00021021,2]
[372762151,1752751849866,-460.0,0.00021021,2]
[372762152,1752751849875,-460.0,0.00021021,2]
[372762153,1752751849885,-460.0,0.00021021,2]
[372762154,1752751849895,-595.36,0.00021021,2]
[372762155,1752751849904,-596.24,0.00021021,2]
[372762156,1752751849914,-536.44,0.00021021,2]
[372762157,1752751849923,-470.42,0.00021021,2]
[372762158,1752751849933,-460.0,0.00021021,2]
[372762159,1752751849942,-3846.76,0.00021021,2]
[372762160,1752751849953,-599.58,0.00021021,2]
[372762161,1752751849963,-1004.86,0.00021021,2]
[372762162,1752751849975,-460.0,0.00021021,2]
[372762163,1752751849985,-576.28,0.00021021,2]
[372762164,1752751849994,-460.0,0.00021022,2]
[372762165,1752751850003,-2034.08,0.00021022,2]
[372762166,1752751850013,-460.0,0.00021022,2]
[372762167,1752751850022,-908.51,0.00021022,2]
[372762168,1752751850032,-962.34,0.00021022,2]
[372762169,1752751850041,-4626.45,0.00021022,2]
[372762170,1752751850051,-810.85,0.00021022,2]
[372762171,1752751850061,-1245.54,0.00021022,2]
[372762172,1752751850071,-9335.88532738,0.00021072,4]
[372762173,1752751850081,-333.8,0.00021093,4]
[372762174,1752751850090,-414.505836,0.00021107,4]
[372762175,1752751850100,-499.85,0.00021124,2]
[372762176,1752751850109,-218.958254,0.00021131,2]
[372762177,1752751850119,-218.958254,0.00021131,2]
[372762178,1752751850128,-1339.522,0.00021205,2]
[372762179,1752751850137,-1330.66,0.0002129,2]
[372762180,1752751850148,-1876.44,0.0002129,2]
[372762181,1752751850158,-2406.28,0.00021293,2]
[372762182,1752751850167,-915.21,0.00021293,2]
[372762183,1752751850177,-535.23,0.00021293,2]
[372762184,1752751850186,-2033.53,0.00021293,2]
[372762185,1752751850195,-740.79,0.00021293,2]
[372762186,1752751850205,-475.95,0.00021293,2]
[372762187,1752751850216,-1059.14,0.00021293,2]
[372762188,1752751850226,-630.62,0.00021293,2]
[372762189,1752751850235,-484.65,0.00021293,2]
[372762190,1752751850245,-460.0,0.00021295,2]
[372762191,1752751850255,-752.75,0.00021295,2]
[372762192,1752751850264,-460.0,0.00021295,2]
[372762193,1752751850274,-460.0,0.00021295,2]
[372762194,1752751850283,-460.0,0.00021295,2]
[372762195,1752751850292,-595.36,0.00021295,2]
[372762196,1752751850302,-596.24,0.00021295,2]
[372762197,1752751850312,-536.44,0.00021295,2]
[372762198,1752751850321,-470.42,0.00021295,2]
[372762199,1752751850333,-460.0,0.00021295,2]
[372762200,1752751850343,-3846.76,0.00021295,2]
[372762201,1752751850352,-599.58,0.00021295,2]
[372762202,1752751850362,-1004.86,0.00021295,2]
[372762203,1752751850371,-460.0,0.00021295,2]
[372762204,1752751850381,-576.28,0.00021295,2]
[372762205,1752751850390,-460.0,0.00021296,2]
[372762206,1752751850400,-2034.08,0.00021296,2]
[372762207,1752751850409,-460.0,0.00021296,2]
[372762208,1752751850418,-828.01071127,0.00021296,2]
[372762209,1752751850591,-421.19002774,0.00020473,2]
[372762210,1752751850604,-1056.55997226,0.00020473,2]
[372762211,1752751850613,-1477.75,0.00020747,2]
[372762212,1752751850623,-1123.23051131,0.00021021,2]
[372762213,1752751850635,-354.51948869,0.00021021,2]
[372762214,1752751850646,-67.32023252,0.00021295,2]
[372762215,1752751850658,-431.15,0.00021295,2]
[372762216,1752751850737,-460.0,0.00017457,2]
[372762217,1752751850746,-5000.0,0.00017556,2]
[372762218,1752751850757,-2633.59304815,0.0002035,3]
[372762219,1752751850808,-5500.61480842,0.0002035,3]
[372762220,1752751850820,-4468.81800817,0.0002035,3]
[372762221,1752751850829,-979.27976748,0.00021295,2]
[372762222,1752751850839,-80.49928873,0.00021296,2]
[372762223,1752751850848,-962.34,0.00021296,2]
[372762224,1752751850857,-4626.45,0.00021296,2]
[372762225,1752751850867,-810.85,0.00021296,2]
[372762226,1752751850877,-751.34149921,0.00021296,2]
[372762227,1752751850889,-494.19850079,0.00021296,2]
[372762228,1752751850899,-3304.37008719,0.000213,4]
[372762229,1752751850908,-4128.57917564,0.00021314,5]
[372762235,1752751977825,-160.0,0.00017276,2]
[372762236,1752751977849,-300.0,0.00017277,2]
[372762237,1752751977872,-5000.0,0.00017278,2]
[372762238,1752751977894,-41.0,0.00017452,2]
[372762239,1752752043390,-4976.0,0.00017181,2]
[372762250,1752752186898,4353.2976062,0.00017,2]
[372762251,1752752186923,646.7023938,0.00017,2]
[372762252,1752752204836,5000.0,0.00017,2]
[372762262,1752752224898,5000.0,0.00017,2]
[372762263,1752752224931,14353.2976062,0.00016354,2]
[372762264,1752752224957,10546.7023938,0.00016354,2]
[372762267,1752752241549,5000.0,0.00017,2]
[372762268,1752752258178,5000.0,0.00017,2]
[372762269,1752752274140,4453.2976062,0.00017,2]
[372762270,1752752274164,546.7023938,0.00017,2]
[372762271,1752752290881,5000.0,0.00017,2]
[372762272,1752752307386,5000.0,0.00017,2]
[372762273,1752752323733,3686.40455465,0.00017,2]
[372762281,1752752462600,718.547345,0.00013699,2]
[372762282,1752752467330,10000.0,0.00016353,2]
[372762283,1752752523768,48.34570655,0.00016353,2]
[372762284,1752752523792,547.23693945,0.00016353,2]
[372762285,1752752572023,-300.0,0.00017144,2]
[372762286,1752752640754,-55.61963609,0.00017144,2]
[372762287,1752752640775,-405.38036391,0.000172,2]
[372762337,1752753032651,-59.69880359,0.000172,2]
[372762339,1752753032662,-300.0,0.00017272,2]
[372762341,1752753032672,-1200.0,0.00017272,2]
[372762343,1752753032683,-4021.99746416,0.00017273,2]
[372762345,1752753032693,-500.0,0.00017346,2]
[372762347,1752753032703,-500.0,0.00017346,2]
[372762349,1752753032712,-500.0,0.00017346,2]
[372762351,1752753032722,-289.30874491,0.00017346,2]
[372762353,1752753032731,-500.0,0.00017346,2]
[372762355,1752753032741,-500.0,0.00017346,2]
[372762357,1752753032750,-500.0,0.00017346,2]
[372762359,1752753032760,-500.0,0.00017346,2]
[372762361,1752753032769,-500.0,0.00017346,2]
[372762363,1752753032778,-500.0,0.00017346,2]
[372762366,1752753032789,-500.0,0.00017346,2]
[372762369,1752753032798,-500.0,0.00017346,2]
[372762371,1752753032807,-500.0,0.00017346,2]
[372762373,1752753032817,-500.0,0.00017346,2]
[372762375,1752753032826,-500.0,0.00017346,2]
[372762376,1752753032836,-500.0,0.00017346,2]
[372762378,1752753032845,-500.0,0.00017346,2]
[372762380,1752753032854,-500.0,0.00017346,2]
[372762382,1752753032864,-500.0,0.00017346,2]
[372762384,1752753032874,-500.0,0.00017346,2]
[372762386,1752753032883,-460.0,0.00017347,2]
[372762388,1752753032892,-460.0,0.00017347,2]
[372762390,1752753032901,-460.0,0.00017347,2]
[372762392,1752753032910,-460.0,0.00017347,2]
[372762394,1752753032920,-460.0,0.00017347,2]
[372762396,1752753032929,-460.0,0.00017347,2]
[372762398,1752753032939,-460.0,0.0001735,2]
[372762399,1752753032949,-460.0,0.0001735,2]
[372762400,1752753032958,-460.0,0.0001735,2]
[372762401,1752753032967,-460.0,0.0001735,2]
[372762402,1752753032977,-460.0,0.0001735,2]
[372762403,1752753032987,-345.3273752,0.0001735,2]
[372762404,1752753032999,-676.3526248,0.0001735,2]
[372762405,1752753033008,-649.32163651,0.0001735,2]
[372762406,1752753033019,-268.64192942,0.0001735,2]
[372762407,1752753033028,-649.32163651,0.0001735,2]
[372762408,1752753033039,-649.32163651,0.0001735,2]
[372762409,1752753033049,-649.32163651,0.0001735,2]
[372762411,1752753033059,-649.32163651,0.0001735,2]
[372762413,1752753033068,-649.32163651,0.0001735,2]
[372762415,1752753033078,-649.32163651,0.0001735,2]
[372762417,1752753033088,-308.00853466,0.0001735,2]
[372762452,1752753038365,-894.46755432,0.00017273,2]
[372762454,1752753038376,-500.0,0.00017346,2]
[372762456,1752753038385,-500.0,0.00017346,2]
[372762458,1752753038395,-538.42050171,0.00017346,2]
[372762460,1752753038404,-500.0,0.00017346,2]
[372762462,1752753038414,-500.0,0.00017346,2]
[372762464,1752753038423,-500.0,0.00017346,2]
[372762466,1752753038433,-500.0,0.00017346,2]
[372762468,1752753038442,-500.0,0.00017346,2]
[372762470,1752753038452,-500.0,0.00017346,2]
[372762472,1752753038462,-341.31310185,0.0001735,2]
[372762474,1752753038471,-649.32163651,0.0001735,2]
[372762476,1752753038481,-649.32163651,0.0001735,2]
[372762478,1752753038491,-665.55467743,0.0001735,2]
[372762480,1752753038500,-665.55467743,0.0001735,2]
[372762482,1752753038510,-665.55467743,0.0001735,2]
[372762484,1752753038520,-665.55467743,0.0001735,2]
[372762486,1752753038529,-665.55467743,0.0001735,2]
[372762489,1752753038540,-665.55467743,0.0001735,2]
[372762491,1752753038549,-665.55467743,0.0001735,2]
[372762493,1752753038559,-788.33804034,0.0001735,2]
[372762495,1752753038568,-788.33804034,0.0001735,2]
[372762497,1752753038577,-460.0,0.00017351,2]
[372762499,1752753038586,-460.0,0.00017351,2]
[372762501,1752753038596,-460.0,0.00017351,2]
[372762503,1752753038606,-460.0,0.00017351,2]
[372762505,1752753038615,-460.0,0.00017351,2]
[372762507,1752753038624,-460.0,0.00017351,2]
[372762509,1752753038634,-460.0,0.00017351,2]
[372762511,1752753038647,-460.0,0.00017351,2]
[372762513,1752753038656,-464.19900311,0.00017351,2]
[372762515,1752753038665,-460.0,0.00017351,2]
[372762517,1752753038675,-460.0,0.00017351,2]
[372762519,1752753038685,-1769.38,0.00017351,2]
[372762521,1752753038695,-457.0,0.00017351,2]
[372762523,1752753038704,-460.0,0.00017351,2]
[372762525,1752753038713,-460.0,0.00017351,2]
[372762527,1752753038724,-460.0,0.00017351,2]
[372762529,1752753038735,-1893.21,0.00017351,2]
[372762531,1752753038744,-460.0,0.00017351,2]
[372762533,1752753038754,-460.0,0.00017351,2]
[372762535,1752753038763,-460.0,0.00017351,2]
[372762537,1752753038773,-1275.6,0.00017351,2]
[372762539,1752753038783,-460.0,0.00017351,2]
[372762541,1752753038792,-460.0,0.00017351,2]
[372762543,1752753038802,-460.0,0.00017351,2]
[372762545,1752753038812,-460.0,0.00017351,2]
[372762547,1752753038821,-1589.83,0.00017351,2]
[372762549,1752753038831,-460.0,0.00017351,2]
[372762551,1752753038840,-465.64436908,0.00017351,2]
[372762553,1752753038849,-460.0,0.00017351,2]
[372762555,1752753038859,-516.26,0.00017351,2]
[372762557,1752753038868,-460.0,0.00017351,2]
[372762559,1752753038877,-460.0,0.00017351,2]
[372762561,1752753038886,-883.24,0.00017351,2]
[372762563,1752753038895,-460.0,0.00017351,2]
[372762565,1752753038905,-460.0,0.00017351,2]
[372762567,1752753038914,-508.73,0.00017351,2]
[372762569,1752753038923,-460.0,0.00017351,2]
[372762571,1752753038933,-460.0,0.00017351,2]
[372762573,1752753038942,-460.0,0.00017351,2]
[372762575,1752753038952,-460.0,0.00017351,2]
[372762577,1752753038962,-460.0,0.00017351,2]
[372762579,1752753038971,-460.0,0.00017351,2]
[372762581,1752753038981,-465.09424804,0.00017351,2]
[372762583,1752753038989,-460.0,0.00017351,2]
[372762585,1752753039000,-460.0,0.00017351,2]
[372762587,1752753039009,-253.24405807,0.00017352,2]
[372762589,1752753039018,-460.0,0.00017352,2]
[372762591,1752753039028,-460.0,0.00017352,2]
[372762593,1752753039037,-460.0,0.00017352,2]
[372762595,1752753039046,-460.0,0.00017352,2]
[372762597,1752753039055,-299.60802603,0.00017352,2]
[372762600,1752753039065,-460.0,0.00017352,2]
[372762602,1752753039075,-460.0,0.00017352,2]
[372762604,1752753039085,-460.0,0.00017352,2]
[372762606,1752753039094,-460.0,0.00017352,2]
[372762608,1752753039104,-460.0,0.00017352,2]
[372762610,1752753039113,-460.0,0.00017352,2]
[372762612,1752753039122,-389.09419639,0.00017352,2]
[372762614,1752753039132,-460.0,0.00017352,2]
[372762616,1752753039142,-460.0,0.00017352,2]
[372762618,1752753039151,-460.0,0.00017352,2]
[372762620,1752753039160,-460.0,0.00017352,2]
[372762622,1752753039169,-363.06528692,0.00017352,2]
[372762624,1752753039179,-460.0,0.00017352,2]
[372762626,1752753039189,-611.76,0.00017352,2]
[372762628,1752753039198,-460.0,0.00017352,2]
[372762630,1752753039207,-460.0,0.00017352,2]
[372762632,1752753039216,-460.0,0.00017352,2]
[372762634,1752753039226,-460.0,0.00017352,2]
[372762636,1752753039236,-460.0,0.00017352,2]
[372762638,1752753039245,-460.0,0.00017352,2]
[372762640,1752753039254,-406.62575338,0.00017352,2]
[372762642,1752753039263,-460.0,0.00017352,2]
[372762644,1752753039273,-151.0,0.00017352,2]
[372762646,1752753039282,-151.0,0.00017352,2]
[372762648,1752753039292,-503.81,0.00017352,2]
[372762650,1752753039302,-460.0,0.00017352,2]
[372762652,1752753039311,-460.0,0.00017352,2]
[372762654,1752753039320,-460.0,0.00017352,2]
[372762656,1752753039331,-460.0,0.00017352,2]
[372762658,1752753039341,-460.0,0.00017352,2]
[372762660,1752753039351,-460.0,0.00017352,2]
[372762662,1752753039360,-460.0,0.00017352,2]
[372762664,1752753039372,-460.0,0.00017352,2]
[372762666,1752753039381,-460.0,0.00017352,2]
[372762668,1752753039391,-460.0,0.00017352,2]
[372762670,1752753039400,-460.0,0.00017352,2]
[372762672,1752753039410,-460.0,0.00017352,2]
[372762674,1752753039419,-460.0,0.00017352,2]
[372762676,1752753039428,-460.0,0.00017352,2]
[372762678,1752753039438,-460.0,0.00017352,2]
[372762680,1752753039447,-460.0,0.00017352,2]
[372762682,1752753039457,-460.0,0.00017352,2]
[372762684,1752753039466,-460.0,0.00017352,2]
[372762686,1752753039477,-460.0,0.00017352,2]
[372762688,1752753039487,-460.0,0.00017352,2]
[372762690,1752753039497,-151.0,0.00017352,2]
[372762692,1752753039508,-151.0,0.00017352,2]
[372762694,1752753039517,-151.0,0.00017352,2]
[372762696,1752753039526,-1533.0,0.00017352,2]
[372762698,1752753039536,-1533.0,0.00017352,2]
[372762701,1752753039546,-460.0,0.00017352,2]
[372762702,1752753039555,-500.0,0.00017352,2]
[372762704,1752753039564,-211.12151948,0.00017352,2]
[372762706,1752753039581,-500.0,0.00017352,2]
[372762709,1752753039594,-500.0,0.00017352,2]
[372762710,1752753039606,-460.0,0.00017352,2]
[372762712,1752753039616,-460.0,0.00017353,2]
[372762713,1752753039625,-460.0,0.00017353,2]
[372762714,1752753039634,-460.0,0.00017353,2]
[372762715,1752753039648,-500.0,0.00017353,2]
[372762716,1752753039657,-500.0,0.00017353,2]
[372762717,1752753039667,-198.2206126,0.00017353,2]
[372762718,1752753039675,-500.0,0.00017353,2]
[372762719,1752753039686,-260.21401573,0.00017353,2]
[372762720,1752753039695,-152.99582741,0.00017353,2]
[372762721,1752753039705,-460.0,0.00017353,2]
[372762722,1752753039720,-500.0,0.00017353,2]
[372762723,1752753039729,-151.0,0.00017353,2]
[372762724,1752753039739,-151.0,0.00017353,2]
[372762725,1752753039749,-151.0,0.00017353,2]
[372762726,1752753039758,-460.0,0.00017353,2]
[372762727,1752753039768,-460.0,0.00017353,2]
[372762728,1752753039777,-460.0,0.00017353,2]
[372762729,1752753039786,-3251.71,0.00017353,2]
[372762730,1752753039795,-460.0,0.00017353,2]
[372762731,1752753039804,-964.35,0.00017353,2]
[372762732,1752753039814,-460.0,0.00017353,2]
[372762733,1752753039823,-840.02,0.00017353,2]
[372762734,1752753039831,-460.0,0.00017353,2]
[372762735,1752753039840,-500.0,0.00017354,2]
[372762737,1752753039849,-1688.0,0.00017354,2]
[372762738,1752753039859,-1688.0,0.00017354,2]
[372762739,1752753039868,-151.0,0.00017354,2]
[372762740,1752753039877,-151.0,0.00017354,2]
[372762741,1752753039886,-500.0,0.00017354,2]
[372762742,1752753039895,-500.0,0.00017354,2]
[372762743,1752753039904,-151.0,0.00017354,2]
[372762745,1752753039914,-151.87870992,0.00017354,2]
[372762747,1752753039923,-370000.0,0.00017355,2]
[372762749,1752753039932,-500.0,0.00017373,2]
[372762751,1752753039941,-500.0,0.00017373,2]
[372762753,1752753039951,-500.0,0.00017373,2]
[372762755,1752753039960,-500.0,0.00017373,2]
[372762757,1752753039970,-460.0,0.00017452,2]
[372762759,1752753039980,-460.0,0.00017452,2]
[372762761,1752753039990,-460.0,0.00017452,2]
[372762763,1752753039999,-460.0,0.00017452,2]
[372762765,1752753040008,-460.0,0.00017452,2]
[372762767,1752753040018,-460.0,0.00017452,2]
[372762769,1752753040027,-460.0,0.00017453,2]
[372762771,1752753040037,-460.0,0.00017453,2]
[372762773,1752753040047,-309.02642257,0.00017453,2]
[372762775,1752753040057,-460.0,0.00017453,2]
[372762777,1752753040067,-460.0,0.00017453,2]
[372762780,1752753040076,-460.0,0.00017453,2]
[372762783,1752753040087,-460.0,0.00017453,2]
[372762785,1752753040096,-460.0,0.00017453,2]
[372762787,1752753040106,-460.0,0.00017453,2]
[372762789,1752753040116,-460.0,0.00017453,2]
[372762791,1752753040126,-769.75,0.00017453,2]
[372762793,1752753040136,-460.0,0.00017453,2]
[372762795,1752753040146,-460.0,0.00017453,2]
[372762797,1752753040156,-1556.35,0.00017453,2]
[372762799,1752753040165,-656.38,0.00017453,2]
[372762801,1752753040175,-460.0,0.00017453,2]
[372762803,1752753040184,-477.8,0.00017453,2]
[372762805,1752753040194,-460.0,0.00017453,2]
[372762807,1752753040203,-886.83,0.00017453,2]
[372762809,1752753040213,-460.0,0.00017453,2]
[372762811,1752753040223,-3249.35,0.00017453,2]
[372762813,1752753040232,-460.0,0.00017454,2]
[372762815,1752753040242,-464.2836076,0.00017454,2]
[372762817,1752753040251,-460.0,0.00017454,2]
[372762819,1752753040260,-460.0,0.00017454,2]
[372762821,1752753040269,-460.0,0.00017454,2]
[372762823,1752753040279,-460.0,0.00017454,2]
[372762825,1752753040289,-460.0,0.00017454,2]
[372762827,1752753040299,-460.0,0.00017454,2]
[372762829,1752753040308,-460.0,0.00017454,2]
[372762831,1752753040318,-460.0,0.00017454,2]
[372762833,1752753040328,-460.0,0.00017454,2]
[372762835,1752753040337,-460.0,0.00017454,2]
[372762837,1752753040347,-460.0,0.00017454,2]
[372762839,1752753040357,-460.0,0.00017454,2]
[372762841,1752753040366,-460.0,0.00017454,2]
[372762843,1752753040376,-460.0,0.00017454,2]
[372762845,1752753040385,-449.22559505,0.00017454,2]
[372762847,1752753040394,-461.05245302,0.00017454,2]
[372762849,1752753040404,-460.0,0.00017454,2]
[372762851,1752753040414,-391.32053451,0.00017454,2]
[372762867,1752753040557,-460.46375079,0.00017454,2]
[372762869,1752753040567,-460.0,0.00017454,2]
[372762871,1752753040577,-460.0,0.00017454,2]
[372762873,1752753040587,-460.0,0.00017454,2]
[372762875,1752753040597,-460.0,0.00017454,2]
[372762877,1752753040606,-460.0,0.00017454,2]
[372762879,1752753040615,-460.0,0.00017454,2]
[372762881,1752753040625,-460.0,0.00017454,2]
[372762883,1752753040636,-460.0,0.00017454,2]
[372762885,1752753040647,-460.0,0.00017454,2]
[372762887,1752753040657,-460.0,0.00017454,2]
[372762889,1752753040667,-460.0,0.00017454,2]
[372762891,1752753040676,-460.0,0.00017454,2]
[372762893,1752753040686,-460.0,0.00017454,2]
[372762895,1752753040695,-461.2641824,0.00017454,2]
[372762897,1752753040705,-460.0,0.00017454,2]
[372762900,1752753040716,-460.0,0.00017454,2]
[372762903,1752753040726,-460.0,0.00017454,2]
[372762906,1752753040735,-460.0,0.00017454,2]
[372762909,1752753040745,-183.93771314,0.00017454,2]
[372762912,1752753040755,-460.0,0.00017454,2]
[372762915,1752753040764,-460.0,0.00017454,2]
[372762918,1752753040773,-460.0,0.00017454,2]
[372762921,1752753040783,-427.13954651,0.00017454,2]
[372762924,1752753040796,-460.0,0.00017454,2]
[372762927,1752753040806,-460.0,0.00017454,2]
[372762929,1752753040816,-460.0,0.00017454,2]
[372762931,1752753040826,-583.42659045,0.00017454,2]
[372762933,1752753040835,-460.0,0.00017454,2]
[372762935,1752753040845,-955.81,0.00017454,2]
[372762937,1752753040855,-460.0,0.00017454,2]
[372762939,1752753040864,-460.0,0.00017454,2]
[372762941,1752753040873,-460.0,0.00017454,2]
[372762943,1752753040883,-460.0,0.00017454,2]
[372762945,1752753040892,-462.03580097,0.00017454,2]
[372762947,1752753040902,-460.0,0.00017454,2]
[372762949,1752753040912,-500.0,0.00017454,2]
[372762951,1752753040921,-460.0,0.00017454,2]
[372762953,1752753040930,-460.0,0.00017454,2]
[372762955,1752753040939,-215.81291359,0.00017454,2]
[372762957,1752753040949,-460.0,0.00017454,2]
[372762959,1752753040958,-460.0,0.00017454,2]
[372762961,1752753040967,-460.0,0.00017454,2]
[372762963,1752753040976,-460.0,0.00017454,2]
[372762965,1752753040985,-460.0,0.00017454,2]
[372762967,1752753040995,-460.0,0.00017454,2]
[372762969,1752753041004,-460.0,0.00017454,2]
[372762971,1752753041013,-460.0,0.00017454,2]
[372762973,1752753041022,-460.0,0.00017454,2]
[372762975,1752753041031,-460.0,0.00017454,2]
[372762977,1752753041042,-460.0,0.00017454,2]
[372762979,1752753041051,-460.0,0.00017454,2]
[372762981,1752753041061,-460.0,0.00017454,2]
[372762983,1752753041071,-460.0,0.00017454,2]
[372762985,1752753041080,-460.0,0.00017454,2]
[372762987,1752753041090,-460.0,0.00017454,2]
[372762989,1752753041099,-460.0,0.00017454,2]
[372762991,1752753041109,-460.0,0.00017454,2]
[372762993,1752753041118,-460.0,0.00017454,2]
[372762995,1752753041128,-460.0,0.00017454,2]
[372762997,1752753041137,-460.0,0.00017459,2]
[372762999,1752753041147,-460.0,0.00017459,2]
[372763001,1752753041156,-460.0,0.00017459,2]
[372763003,1752753041166,-410.0,0.00017459,2]
[372763005,1752753041175,-460.0,0.00017459,2]
[372763007,1752753041185,-460.0,0.00017459,2]
[372763009,1752753041195,-460.0,0.00017459,2]
[372763011,1752753041204,-460.0,0.00017459,2]
[372763013,1752753041214,-473.8056111,0.0001746,2]
[372763016,1752753041224,-460.0,0.0001746,2]
[372763018,1752753041233,-223.63981518,0.0001746,2]
[372763020,1752753041244,-460.0,0.0001746,2]
[372763022,1752753041253,-460.0,0.00017621,2]
[372763024,1752753041262,-460.0,0.00017621,2]
[372763026,1752753041271,-460.0,0.00017621,2]
[372763028,1752753041281,-460.0,0.00017621,2]
[372763029,1752753041291,-460.0,0.00017621,2]
[372763032,1752753041302,-460.0,0.00017624,2]
[372763034,1752753041312,-460.0,0.00017624,2]
[372763036,1752753041321,-460.0,0.00017624,2]
[372763038,1752753041332,-460.0,0.00017624,2]
[372763040,1752753041341,-460.0,0.00017624,2]
[372763041,1752753041351,-1021.68,0.00017624,2]
[372763044,1752753041360,-460.0,0.00017625,2]
[372763046,1752753041373,-460.0,0.00017625,2]
[372763047,1752753041382,-460.0,0.00017625,2]
[372763050,1752753041392,-460.0,0.00017625,2]
[372763052,1752753041402,-460.0,0.00017625,2]
[372763054,1752753041412,-1769.38,0.00017625,2]
[372763056,1752753041421,-460.0,0.00017625,2]
[372763057,1752753041430,-1893.21,0.00017625,2]
[372763060,1752753041440,-460.0,0.00017625,2]
[372763062,1752753041449,-460.0,0.00017625,2]
[372763064,1752753041459,-460.0,0.00017625,2]
[372763066,1752753041468,-1275.6,0.00017625,2]
[372763068,1752753041477,-460.0,0.00017625,2]
[372763070,1752753041487,-1589.83,0.00017625,2]
[372763072,1752753041496,-460.0,0.00017625,2]
[372763074,1752753041505,-516.26,0.00017625,2]
[372763076,1752753041514,-460.0,0.00017625,2]
[372763078,1752753041523,-460.0,0.00017625,2]
[372763080,1752753041533,-883.24,0.00017625,2]
[372763082,1752753041543,-460.0,0.00017625,2]
[372763084,1752753041552,-508.73,0.00017625,2]
[372763086,1752753041561,-460.0,0.00017625,2]
[372763088,1752753041570,-460.0,0.00017625,2]
[372763089,1752753041579,-245.0,0.00017626,2]
[372763091,1752753041591,-153.59413777,0.00017626,2]
[372763093,1752753041600,-151.0,0.00017626,2]
[372763095,1752753041610,-253.00556288,0.00017626,2]
[372763098,1752753041620,-1533.0,0.00017626,2]
[372763100,1752753041630,-1533.0,0.00017626,2]
[372763101,1752753041644,-500.0,0.00017626,2]
[372763103,1752753041654,-500.0,0.00017626,2]
[372763106,1752753041664,-226.99918563,0.00017626,2]
[372763108,1752753041680,-273.00081437,0.00017626,2]
[372763110,1752753041690,-460.0,0.00017626,2]
[372763112,1752753041700,-238.51968945,0.00017626,2]
[372763114,1752753041711,-460.0,0.00017626,2]
[372763116,1752753041721,-154.89050168,0.00017626,2]
[372763118,1752753041733,-305.10949832,0.00017626,2]
[372763120,1752753041744,-460.0,0.00017626,2]
[372763122,1752753041754,-365.6649669,0.00017626,2]
[372763125,1752753041771,-99.8128421,0.00017626,2]